bitfinex-derivatives/quotes_ETHF0:USTF0_20250329
["timestamp","ask_amount","ask_price","bid_price","bid_amount"]
[1743262019886,5.74439,1842.5,1842.4,0.00813183]
[1743262023688,2.53659,1842.5,1842.4,0.00813183]
[1743262024693,2.53659,1842.5,1842.4,1.46363183]
[1743262026497,1.08601,1842.3,1842.2,4.2042]
[1743262026693,1.08601,1842.3,1842.2,5.6354]
[1743262027294,3.25381,1842.3,1842.2,5.6354]
[1743262027803,1.08598,1842.4,1842.2,6.72142]
[1743262028000,1.0859,1842.5,1842.4,1.08593]
[1743262028195,1.08595,1842.4,1842.3,1.4326]
[1743262030692,1.08592,1842.5,1842.3,2.51861]
[1743262030898,1.08592,1842.5,1842.4,1.4326]
[1743262032003,1.08592,1842.5,1842.4,2.51855]
[1743262032211,1.08588,1842.6,1842.4,2.51854]
[1743262032504,0.00813183,1842.8,1842.5,6.3281]
[1743262032708,0.00813183,1842.8,1842.6,2.44431]
[1743262032709,1.09387183,1842.8,1842.6,2.44431]
[1743262032905,0.00813183,1842.8,1842.7,2.44427]
[1743262034411,0.00813183,1842.8,1842.7,2.87271445]
[1743262035409,1.09384183,1842.8,1842.7,1.3585]
[1743262035609,2.50344183,1842.8,1842.7,1.3585]
[1743262036707,1.41773183,1842.8,1842.7,2.44427]
[1743262037110,0.00813183,1842.8,1842.7,2.44427]
[1743262038711,0.7142,1843.3,1842.9,1.0856]
[1743262038907,1.08556,1843.1,1843.0,4.2021]
[1743262040012,1.82986,1843.1,1843.0,4.2021]
[1743262040210,1.08559,1843.0,1842.9,1.3883]
[1743262040410,3.16189,1843.0,1842.9,1.37170748]
[1743262044511,1.08571,1842.8,1842.7,1.4176]
[1743262044817,2.0763,1843.0,1842.4,3.751]
[1743262044818,1.08583,1842.6,1842.5,3.524]
[1743262045021,1.08583,1842.6,1842.5,4.9731]
[1743262045515,1.82663,1842.6,1842.5,4.9731]
[1743262047621,1.08589,1842.5,1842.4,3.2078]
[1743262047917,2.46989,1842.5,1842.4,4.6874]
[1743262049516,1.43,1842.6,1842.4,5.77335]
[1743262049517,2.51584,1842.6,1842.4,5.77335]
[1743262049715,1.43,1842.6,1842.5,2.57519]
[1743262049915,2.51583,1842.6,1842.5,2.233]
[1743262051715,1.82663,1842.6,1842.5,2.233]
[1743262053514,3.25773,1842.6,1842.5,2.233]
[1743262054419,3.25773,1842.6,1842.5,3.31889]
[1743262054616,1.08581,1842.7,1842.5,3.31889]
[1743262054815,1.08581,1842.7,1842.6,3.26413]
[1743262055117,1.08581,1842.7,1842.6,5.6963]
[1743262055517,2.52621,1842.7,1842.6,5.6963]
[1743262057223,0.6939,1842.8,1842.7,1.08577]
[1743262057424,1.77961,1842.8,1842.7,2.52687]
[1743262057717,1.77961,1842.8,1842.7,1.4411]
[1743262057915,3.22001,1842.8,1842.7,1.4411]
[1743262058124,3.22001,1842.8,1842.7,2.52687]
[1743262058919,1.0857,1842.9,1842.7,1.4411]
[1743262059126,1.0857,1842.9,1842.8,2.49251]
[1743262060122,2.49,1842.9,1842.8,1.4068]
[1743262061231,1.08577,1842.7,1842.6,7.4116]
[1743262061431,1.4043,1842.8,1842.6,9.90421]
[1743262061631,1.4043,1842.8,1842.7,2.49257]
[1743262061831,2.1844,1843.0,1842.9,1.08565]
[1743262062130,3.27001,1843.0,1842.8,3.26647]
[1743262062330,3.27001,1843.0,1842.9,1.4419]
[1743262063327,1.08555,1843.1,1843.0,1.08557]
[1743262063527,3.25285183,1843.2,1843.0,1.80197]
[1743262063725,1.08554,1843.1,1843.0,2.1583]
[1743262063919,1.08554,1843.1,1843.0,0.7164]
[1743262064124,2.56464,1843.1,1843.0,0.7164]
[1743262064933,1.08559,1843.0,1842.9,3.518]
[1743262065125,2.53009,1843.0,1842.9,3.50140748]
[1743262067036,1.08558,1843.1,1842.9,4.58705748]
[1743262067238,1.08558,1843.1,1842.9,4.58702748]
[1743262067536,1.08556,1843.1,1842.9,4.58701748]
[1743262069136,1.08556,1843.1,1843.0,1.08559]
[1743262069339,1.06896748,1843.1,1843.0,1.08559]
[1743262069530,1.06896748,1843.1,1842.9,4.58701748]
[1743262069730,1.06896748,1843.1,1842.9,4.57042496]
[1743262073540,1.08565,1842.9,1842.8,0.7389]
[1743262073740,1.08571,1842.8,1842.7,0.6827]
[1743262073941,1.08571,1842.8,1842.7,4.9418]
[1743262074436,1.401,1842.8,1842.7,6.02757]
[1743262074941,2.48671,1842.8,1842.7,6.02757]
[1743262076943,2.48671,1842.8,1842.7,7.48367]
[1743262077346,1.401,1842.8,1842.7,7.48367]
[1743262079441,2.48671,1842.8,1842.7,7.48367]
[1743262080037,2.48671,1842.8,1842.7,6.3979]
[1743262080237,2.48671,1842.8,1842.7,7.48367]
[1743262080436,1.7678,1842.9,1842.7,7.48367]
[1743262080638,1.7678,1842.9,1842.8,1.4009]
[1743262080839,1.76775,1842.9,1842.8,1.4009]
[1743262081038,3.12545,1842.9,1842.8,1.4009]
[1743262081247,2.0398,1842.9,1842.8,2.48661]
[1743262081439,1.08565,1842.9,1842.8,2.48661]
[1743262083248,3.88101,1843.0,1842.9,1.08565]
[1743262083449,3.18421,1843.0,1842.9,1.4737]
[1743262085952,3.18421,1843.0,1842.9,2.55935]
[1743262086747,1.08554,1843.1,1843.0,1.08559]
[1743262087051,1.08554,1843.1,1843.0,5.33889]
[1743262087753,1.08554,1843.1,1843.0,4.2533]
[1743262088252,1.08554,1843.1,1843.0,5.5975]
[1743262088853,1.79334,1843.1,1843.0,5.5975]
[1743262089248,1.79334,1843.1,1843.0,6.68309]
[1743262089949,2.51853183,1843.2,1843.0,6.68309]
[1743262090154,3.19443183,1843.2,1843.1,1.3741]
[1743262092253,3.19443183,1843.2,1843.1,2.45964]
[1743262092455,2.10893183,1843.2,1843.1,2.45964]
[1743262093551,2.10893183,1843.2,1843.1,1.3741]
[1743262093752,3.19441183,1843.2,1843.1,2.45964]
[1743262094150,3.19441183,1843.2,1843.1,1.3741]
[1743262097259,3.19441183,1843.2,1843.1,2.45964]
[1743262097757,3.19441183,1843.2,1843.1,1.3741]
[1743262101353,0.00813183,1843.2,1843.1,2.45964]
[1743262102956,1.09361183,1843.2,1843.1,2.0659]
[1743262103155,3.25071183,1843.2,1843.1,3.15144]
[1743262103356,3.25071183,1843.2,1843.1,2.0659]
[1743262103556,3.25071183,1843.2,1843.1,1.3741]
[1743262106868,3.25071183,1843.2,1843.1,2.45964]
[1743262107068,3.25071183,1843.2,1843.1,1.3741]
[1743262110173,3.25071183,1843.2,1843.1,2.45964]
[1743262110968,3.25071183,1843.2,1843.1,1.3741]
[1743262111273,3.25071183,1843.2,1843.1,2.45964]
[1743262111473,2.16523183,1843.2,1843.1,2.45964]
[1743262111674,2.16523183,1843.2,1843.1,3.18254]
[1743262112875,3.25071183,1843.2,1843.1,3.18254]
[1743262116075,3.25071183,1843.2,1843.1,2.097]
[1743262116275,3.25071183,1843.2,1843.1,3.18254]
[1743262116478,2.16523183,1843.2,1843.1,3.18254]
[1743262117179,2.16523183,1843.2,1843.1,1.3741]
[1743262117180,3.25071183,1843.2,1843.1,1.3741]
[1743262118175,8.08678183,1843.2,1842.7,3.2078]
[1743262118480,1.08571,1842.8,1842.7,6.70820748]
[1743262119683,1.08571,1842.8,1842.7,8.15170748]
[1743262120574,2.50261,1842.8,1842.7,8.15170748]
[1743262120878,2.50261,1842.8,1842.7,4.9605]
[1743262125798,3.8851,1843.1,1842.7,4.9605]
[1743262125995,1.08569,1842.9,1842.8,1.4502]
[1743262130389,2.52802,1843.0,1842.8,2.53588]
[1743262130592,2.52802,1843.0,1842.9,1.81585]
[1743262130897,2.52802,1843.0,1842.9,2.826]
[1743262131098,1.08562,1843.0,1842.9,2.826]
[1743262132298,1.08562,1843.0,1842.9,3.91165]
[1743262132598,1.08562,1843.0,1842.9,2.826]
[1743262132993,2.71414,1842.9,1842.5,50.146]
[1743262133195,1.08583,1842.6,1842.5,51.5428]
[1743262133395,1.08583,1842.6,1842.5,55.0598]
[1743262134502,2.44493,1842.6,1842.5,56.4448]
[1743262135699,4.07372,1842.6,1842.1,0.55033183]
[1743262135899,1.08607,1842.2,1842.1,0.55033183]
[1743262136999,2.46187,1842.2,1842.1,2.02943183]
[1743262138392,2.46187,1842.2,1842.1,0.55033183]
[1743262139099,2.46187,1842.2,1842.1,0.00813183]
[1743262140001,2.46187,1842.2,1842.1,1.44623183]
[1743262140399,1.08607,1842.2,1842.1,1.44623183]
[1743262140601,1.08607,1842.2,1842.1,2.14713183]
[1743262142106,4.29387,1842.2,1842.1,0.00813183]
[1743262142799,5.66787,1842.2,1842.1,0.00813183]
[1743262144003,1.08618,1842.0,1841.9,1.4348]
[1743262144600,2.44608,1842.0,1841.9,1.4348]
[1743262144802,13.30126,1842.0,1841.2,1.08664]
[1743262145002,1.08648,1841.5,1841.4,1.4666]
[1743262145201,1.08648,1841.5,1841.4,1.47473183]
[1743262145803,2.44638,1841.5,1841.4,1.47473183]
[1743262146102,5.65418,1841.5,1841.4,1.47473183]
[1743262146309,5.65418,1841.5,1841.4,0.00813183]
[1743262148407,1.3599,1841.5,1841.4,1.09467183]
[1743262148607,1.3599,1841.5,1841.4,2.47337183]
[1743262148807,1.3599,1841.5,1841.4,1.38683183]
[1743262149003,1.3599,1841.5,1841.4,2.47337183]
[1743262149199,1.08642,1841.6,1841.4,2.47334183]
[1743262149406,3.2078,1841.7,1841.4,2.47334183]
[1743262149407,5.7772,1841.7,1841.5,2.1099]
[1743262149606,5.7772,1841.7,1841.6,1.3787]
[1743262150011,0.00813183,1841.8,1841.6,1.3787]
[1743262150210,0.00813183,1841.8,1841.7,1.08636]
[1743262150402,0.00813183,1841.8,1841.7,2.53276]
[1743262153213,1.08603,1842.3,1842.1,1.08608]
[1743262153407,1.08603,1842.3,1842.2,2.1626]
[1743262153612,1.4896,1842.3,1842.2,2.1626]
[1743262154115,1.4896,1842.3,1842.2,3.24867]
[1743262154610,1.4896,1842.3,1842.2,2.1626]
[1743262154913,1.4896,1842.3,1842.2,3.24867]
[1743262155316,0.00813183,1842.4,1842.2,3.24867]
[1743262155510,0.00813183,1842.4,1842.3,2.55821]
[1743262155710,1.09408183,1842.4,1842.3,1.4722]
[1743262156106,2.44128183,1842.4,1842.3,1.4722]
[1743262157218,3.85533183,1842.4,1841.7,3.2078]
[1743262157409,5.92314,1842.1,1841.5,4.29425]
[1743262157713,5.92314,1842.1,1841.6,2.44191]
[1743262157714,1.08636,1841.8,1841.6,2.44191]
[1743262158022,1.08636,1841.8,1841.7,1.3555]
[1743262159221,1.08636,1841.8,1841.7,2.44186]
[1743262159516,1.08636,1841.8,1841.7,1.3555]
[1743262160611,1.08636,1841.8,1841.7,2.44186]
[1743262160818,1.08648,1841.5,1841.4,0.00813183]
[1743262161021,4.29428,1841.5,1841.4,1.41643183]
[1743262162412,1.08648,1841.5,1841.4,1.41643183]
[1743262166417,1.08648,1841.5,1841.4,2.50297183]
[1743262166618,1.08648,1841.5,1841.4,1.41643183]
[1743262167427,1.08647,1841.6,1841.4,2.50297183]
[1743262167628,1.08647,1841.6,1841.5,1.3683]
[1743262168125,3.2078,1841.7,1841.5,1.3683]
[1743262168126,1.08637,1841.7,1841.6,1.08642]
[1743262168325,1.08637,1841.7,1841.6,0.6848]
[1743262168720,1.08637,1841.7,1841.6,2.0793]
[1743262174630,1.08648,1841.5,1841.4,1.83503183]
[1743262174831,1.08648,1841.5,1841.4,1.36673183]
[1743262175029,1.08648,1841.5,1841.4,2.45327183]
[1743262175431,1.08647,1841.6,1841.4,2.45327183]
[1743262175632,1.08647,1841.6,1841.5,1.3586]
[1743262177137,2.48927,1841.6,1841.5,1.3586]
[1743262185235,3.2078,1841.8,1841.5,1.3586]
[1743262185436,1.08632,1841.8,1841.7,1.08636]
[1743262185638,1.4492,1841.9,1841.8,1.0863]
[1743262185942,2.53544,1841.9,1841.7,2.50753]
[1743262186447,2.53544,1841.9,1841.8,1.4164]
[1743262194743,1.08636,1841.7,1841.6,2.49601]
[1743262194943,1.08636,1841.7,1841.6,4.9286]
[1743262196045,1.08636,1841.7,1841.6,7.48092]
[1743262196549,1.08636,1841.7,1841.6,6.3945]
[1743262196951,1.08636,1841.7,1841.6,7.48092]
[1743262197143,1.08636,1841.7,1841.6,6.3945]
[1743262197651,1.3801,1841.8,1841.6,7.48092]
[1743262197845,1.3801,1841.8,1841.7,1.4659]
[1743262197846,2.4664,1841.8,1841.7,1.4659]
[1743262200139,3.9027,1842.0,1841.7,1.4659]
[1743262200345,2.53678,1842.2,1841.8,3.2078]
[1743262200544,3.21593183,1842.4,1841.9,6.63863]
[1743262200750,3.21593183,1842.4,1842.0,1.356]
[1743262200751,1.08618,1842.1,1842.0,1.356]
[1743262200950,1.08618,1842.1,1842.0,1.32286053]
[1743262201948,1.08636,1841.7,1841.6,3.2078]
[1743262202149,1.08636,1841.7,1841.6,3.519]
[1743262202751,1.08642,1841.6,1841.5,4.8972]
[1743262203051,1.08636,1841.7,1841.6,1.0864]
[1743262203247,1.08633,1841.8,1841.5,4.8972]
[1743262203451,1.08641,1841.7,1841.5,5.98367]
[1743262204055,1.08641,1841.7,1841.6,1.3727]
[1743262205652,1.75951,1841.7,1841.6,1.3727]
[1743262205851,1.08642,1841.6,1841.5,2.1476]
[1743262206456,1.08648,1841.5,1841.4,6.73493183]
[1743262206649,1.08648,1841.5,1841.4,8.18233183]
[1743262209254,1.08648,1841.5,1841.4,4.97453183]
[1743262211354,1.08648,1841.5,1841.4,1.45553183]
[1743262222466,1.08648,1841.5,1841.4,2.54207183]
[1743262222762,6.79428,1841.5,1841.4,1.83e-06]
[1743262222967,1.08677,1841.0,1840.9,1.4603]
[1743262223164,4.29457,1841.0,1840.9,1.4603]
[1743262223969,5.67437,1841.0,1840.9,1.4603]
[1743262224463,2.71713,1840.9,1840.3,3.2078]
[1743262224669,2.71713,1840.9,1840.3,1.4603]
[1743262224670,1.08718,1840.4,1840.3,1.4603]
[1743262224964,3.2078,1840.6,1840.2,0.7395]
[1743262225161,1.08725,1840.2,1840.1,21.2301861]
[1743262225367,2.4669,1840.5,1840.1,21.2301861]
[1743262225566,1.3798,1840.5,1840.2,1.4498]
[1743262225761,3.9368,1840.8,1840.3,3.534]
[1743262225963,1.08706,1840.6,1840.3,4.62113]
[1743262226165,2.0443,1840.7,1840.3,4.62113]
[1743262226462,1.08703,1840.6,1840.3,4.62116]
[1743262226669,2.43633,1840.6,1840.3,1.08716]
[1743262226856,1.3493,1840.6,1840.4,1.08712]
[1743262227160,0.00813183,1841.1,1840.4,3.2078]
[1743262227366,1.3493,1841.0,1840.6,3.2078]
[1743262227561,0.00813183,1841.1,1840.9,1.08683]
[1743262228065,1.08677,1841.0,1840.9,0.6873]
[1743262228265,1.08685,1840.9,1840.7,0.7213]
[1743262228563,2.44420183,1841.1,1840.8,4.62588]
[1743262228768,1.35743183,1841.1,1840.8,3.539]
[1743262229069,1.35743183,1841.1,1840.9,1.0868]
[1743262229264,0.00813183,1841.1,1841.0,4.29457]
[1743262229569,0.00813183,1841.1,1841.0,1.08677]
[1743262234271,3.2078,1841.8,1841.1,2.71671]
[1743262234473,5.65322,1841.8,1841.6,1.08642]
[1743262234773,5.65322,1841.8,1841.7,0.7239]
[1743262235269,1.08636,1841.7,1841.6,0.00813183]
[1743262235462,2.48446,1841.7,1841.6,0.00813183]
[1743262235662,1.3981,1841.7,1841.6,0.00813183]
[1743262235868,1.3981,1841.7,1841.6,1.83515183]
[1743262237171,1.3981,1841.7,1841.6,3.20635183]
[1743262238461,1.09441183,1841.9,1841.7,1.08634]
[1743262238767,1.08636,1841.7,1841.6,0.00813183]
[1743262239164,1.08654,1841.4,1841.3,3.559]
[1743262239363,3.2078,1841.5,1841.1,3.559]
[1743262239666,1.80044,1841.3,1841.1,4.64569]
[1743262239873,1.80044,1841.3,1841.2,1.4082]
[1743262240576,1.8004,1841.3,1841.2,1.4082]
[1743262241769,0.7138,1841.3,1841.2,2.49486]
[1743262241970,1.82815,1841.6,1841.2,1.4082]
[1743262242168,1.82815,1841.6,1841.1,6.77493183]
[1743262242169,2.1608,1841.6,1841.3,6.115]
[1743262242372,2.50558,1841.5,1841.4,1.4545]
[1743262242569,1.4191,1841.5,1841.4,2.54104]
[1743262243077,2.50558,1841.5,1841.4,1.4545]
[1743262245277,1.4191,1841.5,1841.4,2.54104]
[1743262245473,2.50558,1841.5,1841.4,1.4545]
[1743262247377,1.4191,1841.5,1841.4,1.4545]
[1743262247571,1.4191,1841.5,1841.4,2.54104]
[1743262247772,2.50558,1841.5,1841.4,1.4545]
[1743262253079,1.4191,1841.5,1841.1,4.30261183]
[1743262253381,1.08666,1841.2,1841.1,0.00813183]
[1743262253581,2.71721,1840.9,1840.3,4.65016]
[1743262253782,1.08707,1840.5,1840.4,1.4359]
[1743262253976,1.08713,1840.4,1840.3,3.563]
[1743262254285,2.56993,1840.4,1840.3,4.9989]
[1743262255186,3.25173,1840.4,1840.3,4.9989]
[1743262255385,2.1646,1840.4,1840.3,4.9989]
[1743262255586,3.25173,1840.4,1840.3,4.9989]
[1743262255881,2.1646,1840.4,1840.3,4.9989]
[1743262256585,2.1646,1840.4,1840.3,6.08609]
[1743262256786,3.25173,1840.4,1840.3,4.9989]
[1743262256985,2.1646,1840.4,1840.3,4.9989]
[1743262257186,0.00813183,1840.5,1840.3,6.08609]
[1743262257382,1.09520183,1840.5,1840.4,1.357]
[1743262257585,2.51030183,1840.5,1840.4,1.357]
[1743262257790,1.08713,1840.4,1840.3,3.564]
[1743262257976,1.08733,1840.1,1840.0,3.2078]
[1743262258180,1.08733,1840.1,1840.0,8.1288]
[1743262258890,1.08725,1840.2,1840.0,9.21615]
[1743262259090,2.1086,1840.3,1840.0,8.1288]
[1743262259389,1.08719,1840.3,1840.1,1.08729]
[1743262259581,1.08719,1840.3,1840.1,2.5395]
[1743262259782,0.73173183,1840.5,1840.2,3.2078]
[1743262259984,0.73173183,1840.5,1840.3,3.92435]
[1743262260185,1.81880183,1840.5,1840.4,1.4522]
[1743262260981,1.08748,1839.8,1839.6,3.2078]
[1743262261182,1.08751,1839.8,1839.6,4.98698]
[1743262261483,1.08747,1839.9,1839.6,4.98697]
[1743262261688,5.92651,1839.8,1839.1,3.2078]
[1743262261882,1.08781,1839.3,1839.1,3.2078]
[1743262262079,1.08784,1839.2,1839.1,3.2078]
[1743262262283,1.0879,1839.1,1839.0,1.3821]
[1743262262789,3.2078,1839.2,1838.5,24.4379861]
[1743262262987,0.00815438,1839.4,1838.9,3.2078]
[1743262263296,3.21595438,1839.4,1838.8,6.97816502]
[1743262263584,1.08796,1839.0,1838.9,1.3821]
[1743262263790,1.08791,1839.1,1838.9,1.3821]
[1743262264192,1.08791,1839.1,1838.4,51.5696]
[1743262264193,3.2078,1839.0,1838.4,58.4564]
[1743262264390,3.2078,1838.5,1838.1,3.2078]
[1743262264588,3.2078,1838.8,1838.1,3.2078]
[1743262264787,5.936,1839.3,1838.5,3.2078]
[1743262264788,3.2078,1839.1,1838.5,3.2078]
[1743262264990,0.7072,1839.2,1838.6,4.5899]
[1743262265286,3.915,1839.2,1838.6,1.3821]
[1743262265490,1.08799,1839.0,1838.6,2.47029]
[1743262265687,1.08802,1838.9,1838.7,1.4599]
[1743262265990,3.915,1839.2,1838.7,1.4599]
[1743262266189,1.79506,1839.2,1838.8,1.08806]
[1743262266391,1.79506,1839.2,1838.5,3.2078]
[1743262266392,1.08794,1839.1,1838.9,1.4599]
[1743262266891,3.2078,1839.3,1839.0,1.08792]
[1743262267092,4.29558,1839.3,1839.1,1.4599]
[1743262267592,3.2078,1839.3,1839.1,1.4599]
[1743262267790,0.00815438,1839.4,1839.1,1.4599]
[1743262267992,0.00815438,1839.4,1839.3,1.08778]
[1743262268290,0.00815438,1839.4,1839.3,6.9818]
[1743262268486,3.2078,1839.9,1839.3,8.3917]
[1743262268681,1.0876,1839.7,1839.3,8.3917]
[1743262268993,1.08761,1839.6,1839.4,1.4099]
[1743262269194,1.08758,1839.7,1839.4,1.4099]
[1743262269691,0.00815438,1839.7,1839.5,1.08765]
[1743262269894,0.00815438,1839.7,1839.6,5.1799]
[1743262270082,0.00815438,1839.7,1839.6,6.2675]
[1743262270694,0.00815438,1839.7,1839.6,5.1799]
[1743262271489,0.00815438,1839.7,1839.6,6.2675]
[1743262272687,0.00815438,1839.7,1839.6,2.4975]
[1743262272887,0.00815438,1839.7,1839.6,6.2625]
[1743262274494,4.29494,1840.4,1840.1,1.08729]
[1743262274691,3.2078,1840.4,1840.2,1.3932]
[1743262274885,1.08719,1840.3,1840.2,1.3932]
[1743262275088,1.08719,1840.3,1840.0,3.759]
[1743262275089,1.08731,1840.1,1840.0,3.759]
[1743262275396,1.08731,1840.1,1840.0,5.1522]
[1743262275598,1.09544438,1840.2,1840.0,5.1522]
[1743262275888,1.08731,1840.1,1840.0,5.1522]
[1743262276498,0.00815438,1840.2,1840.0,5.1522]
[1743262276689,0.00815438,1840.2,1840.0,6.23954]
[1743262276885,1.09540438,1840.2,1840.0,5.1522]
[1743262277097,0.00815438,1840.2,1840.0,6.23954]
[1743262277797,1.09543438,1840.2,1840.0,5.1522]
[1743262278501,2.55343438,1840.2,1840.0,5.1522]
[1743262278696,1.46615438,1840.2,1839.9,6.9608]
[1743262279001,1.08751,1839.8,1839.6,4.84557]
[1743262279195,1.08751,1839.8,1839.6,6.27947]
[1743262279498,1.08751,1839.8,1839.7,1.4339]
[1743262279803,1.08747,1839.9,1839.7,2.52144]
[1743262280091,1.458,1839.9,1839.7,1.4339]
[1743262280296,1.458,1839.9,1839.7,2.52142]
[1743262280701,2.54545,1839.9,1839.7,2.52142]
[1743262280896,1.458,1839.9,1839.7,1.4339]
[1743262281097,2.54546,1839.9,1839.7,1.4339]
[1743262281599,2.54546,1839.9,1839.7,2.52143]
[1743262283299,2.54546,1839.9,1839.7,1.4339]
[1743262283504,1.08748,1839.8,1839.7,1.4339]
[1743262283905,2.54547,1839.9,1839.7,2.52144]
[1743262284804,1.08748,1839.8,1839.7,1.4339]
[1743262285501,1.458,1839.9,1839.7,1.4339]
[1743262285700,1.08748,1839.8,1839.7,1.4339]
[1743262287506,1.08766,1839.5,1839.4,0.00815438]
[1743262287802,1.08784,1839.2,1839.1,1.3617]
[1743262289200,1.08781,1839.3,1839.1,2.4496]
[1743262289504,2.43501,1839.3,1839.2,1.3617]
[1743262290602,0.7405,1839.4,1839.2,1.3617]
[1743262290807,2.49779,1839.5,1839.3,1.08776]
[1743262291006,2.49779,1839.5,1839.4,1.3526]
[1743262291210,2.49779,1839.5,1839.1,1.441]
[1743262291211,1.4101,1839.5,1839.1,2.52888]
[1743262291406,1.4101,1839.5,1839.2,1.3526]
[1743262291809,1.0878,1839.3,1839.2,1.3526]
[1743262292006,1.0878,1839.3,1839.0,57.18095438]
[1743262292007,1.0879,1839.1,1839.0,0.00815438]
[1743262292204,4.2957,1839.1,1839.0,0.00815438]
[1743262292708,5.7139,1839.1,1839.0,0.00815438]
[1743262295411,1.08808,1838.8,1838.6,3.2078]
[1743262295612,1.08808,1838.8,1838.6,2.45494]
[1743262295814,2.55763,1838.7,1838.6,4.5746]
[1743262296213,2.55763,1838.7,1838.6,1.3668]
[1743262296417,1.4695,1838.7,1838.4,53.977]
[1743262296607,1.08825,1838.5,1838.3,4.29615]
[1743262296910,1.08825,1838.5,1838.4,1.4822]
[1743262297715,8.0741,1838.7,1838.2,1.08843]
[1743262297911,1.08837,1838.3,1838.2,1.4822]
[1743262298207,1.4695,1838.4,1837.9,3.2078]
[1743262298412,1.08854,1838.1,1837.9,5.77859]
[1743262298614,1.08854,1838.1,1837.9,4.69]
[1743262298804,1.47765438,1838.2,1837.9,4.69]
[1743262299011,0.00815438,1838.2,1838.1,1.08849]
[1743262299508,0.00815438,1838.2,1837.9,3.2078]
[1743262299708,1.40645438,1838.2,1837.9,3.2078]
[1743262299914,1.40645438,1838.2,1838.0,1.3685]
[1743262299915,1.08851,1838.1,1838.0,1.3685]
[1743262300107,2.49494438,1838.2,1838.0,1.3685]
[1743262300307,2.49488438,1838.2,1838.0,2.45703]
[1743262300515,1.08849,1838.1,1838.0,1.3685]
[1743262300902,0.00815438,1838.2,1838.0,1.3685]
[1743262301114,1.09658438,1838.2,1838.0,1.3685]
[1743262301314,1.09658438,1838.2,1838.1,0.6991]
[1743262302316,1.08849,1838.1,1838.0,1.3685]
[1743262302512,2.43889,1838.1,1838.0,1.3685]
[1743262302916,1.08849,1838.1,1838.0,1.3685]
[1743262304120,0.00815438,1838.2,1838.0,1.3685]
[1743262304420,0.00815438,1838.2,1838.1,1.08849]
[1743262304722,1.09658438,1838.2,1838.0,2.45703]
[1743262304919,1.09658438,1838.2,1838.1,0.7123]
[1743262306415,0.00815438,1838.2,1838.1,0.7123]
[1743262306620,5.92785,1838.9,1838.3,1.08832]
[1743262306916,1.08825,1838.5,1838.4,0.7335]
[1743262307115,1.08825,1838.5,1838.4,2.2222]
[1743262308323,1.09638438,1838.6,1838.4,3.3105]
[1743262308713,1.09638438,1838.6,1838.5,1.08825]
[1743262308921,1.09638438,1838.6,1838.5,2.0425]
[1743262309628,0.00815438,1838.6,1838.5,3.13075]
[1743262309920,1.09634438,1838.6,1838.5,3.13075]
[1743262311321,0.00815438,1838.6,1838.5,3.13075]
[1743262311918,0.00815438,1838.6,1838.5,6.33855]
[1743262321535,1.09634438,1838.6,1838.5,5.2503]
[1743262321733,1.09634438,1838.6,1838.5,8.9763]
[1743262322234,1.09634438,1838.6,1838.5,5.7665]
[1743262322736,1.09634438,1838.6,1838.5,6.85475]
[1743262323132,1.09634438,1838.6,1838.5,5.7665]
[1743262324237,1.09634438,1838.6,1838.5,6.85475]
[1743262324434,1.09634438,1838.6,1838.5,5.7665]
[1743262325046,1.09634438,1838.6,1838.5,6.85475]
[1743262325247,0.00815438,1838.6,1838.5,6.85475]
[1743262325447,1.09634438,1838.6,1838.5,5.7665]
[1743262325749,1.09634438,1838.6,1838.5,5.7585]
[1743262326246,1.09634438,1838.6,1838.5,6.84675]
[1743262326646,0.00815438,1838.6,1838.5,6.84675]
[1743262326844,1.09634438,1838.6,1838.5,5.7585]
[1743262327953,1.09634438,1838.6,1838.5,6.84675]
[1743262328249,0.00815438,1838.6,1838.5,6.84675]
[1743262329049,1.09634438,1838.6,1838.5,6.84675]
[1743262329253,2.50674438,1838.6,1838.5,6.83675]
[1743262329549,1.09634438,1838.6,1838.5,6.83675]
[1743262329747,0.00815438,1838.6,1838.5,6.83675]
[1743262330446,1.09634438,1838.6,1838.5,6.83675]
[1743262331146,0.00815438,1838.6,1838.3,3.21595438]
[1743262331351,2.72123,1838.1,1837.6,5.56054009]
[1743262331646,2.0991,1838.0,1837.7,1.4112]
[1743262331849,1.4104,1837.9,1837.7,1.4112]
[1743262332048,1.4104,1837.9,1837.7,5.1382]
[1743262332449,2.49901,1837.9,1837.8,1.4666]
[1743262332949,1.08845,1838.2,1837.8,1.4666]
[1743262333149,2.52718,1838.2,1837.9,1.4201]
[1743262333350,1.08849,1838.1,1838.0,1.4666]
[1743262333649,2.52719,1838.1,1838.0,1.4666]
[1743262334953,3.26299,1838.1,1838.0,1.4666]
[1743262335655,2.52719,1838.1,1838.0,1.4666]
[1743262336154,4.6465,1838.1,1837.7,4.80871]
[1743262336357,1.08863,1837.9,1837.7,5.9255]
[1743262336552,1.08863,1837.9,1837.8,1.4627]
[1743262337252,1.08863,1837.9,1837.7,1.08872]
[1743262337557,1.08873,1837.7,1837.6,3.2078]
[1743262337756,1.08873,1837.7,1837.6,4.6705]
[1743262338260,2.49123,1837.7,1837.6,4.6705]
[1743262340650,1.08873,1837.7,1837.6,4.6705]
[1743262340853,3.30601,1837.8,1837.6,4.6705]
[1743262341053,2.2173,1837.8,1837.7,1.4297]
[1743262341260,3.30597,1837.8,1837.7,1.4297]
[1743262343660,2.2173,1837.8,1837.7,2.51843]
[1743262343861,3.30597,1837.8,1837.7,1.4297]
[1743262346965,4.29634,1838.1,1837.9,1.08856]
[1743262347161,1.08867,1837.8,1837.7,1.4297]
[1743262347667,1.08865,1837.9,1837.7,2.51843]